bitfinex-derivatives/quotes_BTCF0:USTF0_20240907
["timestamp","ask_amount","ask_price","bid_price","bid_amount"]
[1725744917038,0.07779794,54050.0,54049.0,0.092513]
[1725744918230,0.07779794,54050.0,54049.0,0.093513]
[1725744919433,0.07779794,54050.0,54049.0,0.10057874]
[1725744919737,0.07779794,54050.0,54049.0,0.09957874]
[1725744919939,0.02998933,54050.0,54049.0,0.10057874]
[1725744923844,0.09149038,54050.0,54049.0,0.10057874]
[1725744924541,0.02999122,54050.0,54049.0,0.10057874]
[1725744925139,0.02999062,54050.0,54049.0,0.10057874]
[1725744926648,0.13977907,54052.0,54049.0,0.10057874]
[1725744927254,0.13977907,54051.0,54049.0,0.10057874]
[1725744927466,0.02999062,54050.0,54049.0,0.10057874]
[1725744927953,0.10978845,54051.0,54049.0,0.10057874]
[1725744928253,0.13977907,54050.0,54049.0,0.10057874]
[1725744928953,0.10978845,54050.0,54049.0,0.10057874]
[1725744929255,0.13999613,54050.0,54049.0,0.10057874]
[1725744929447,0.11000551,54050.0,54049.0,0.10057874]
[1725744929645,0.02999049,54050.0,54049.0,0.10057874]
[1725744929843,0.02999049,54052.0,54049.0,0.10057874]
[1725744930249,0.02999051,54051.0,54049.0,0.10057874]
[1725744930461,0.02999051,54050.0,54049.0,0.10057874]
[1725744931055,0.11000946,54051.0,54049.0,0.10057874]
[1725744931643,0.11000946,54050.0,54049.0,0.10057874]
[1725744932548,0.02999051,54050.0,54049.0,0.10057874]
[1725744932756,0.02999051,54052.0,54049.0,0.10057874]
[1725744932960,0.07682032,54051.0,54049.0,0.10057874]
[1725744933154,0.02999051,54050.0,54049.0,0.10057874]
[1725744933856,0.02999051,54050.0,54049.0,0.09957874]
[1725744934158,0.02999051,54050.0,54049.0,0.10057874]
[1725744934459,0.12250151,54050.0,54049.0,0.00806574]
[1725744935054,0.16911649,54050.0,54049.0,0.00806574]
[1725744936350,0.12250151,54050.0,54049.0,0.00806574]
[1725744938059,0.16893545,54050.0,54049.0,0.00806574]
[1725744938250,0.16892673,54050.0,54049.0,0.001]
[1725744938956,0.16892673,54050.0,54046.0,0.00699015]
[1725744938957,0.092518,54046.0,54045.0,0.06147466]
[1725744939159,0.12250851,54046.0,54045.0,0.06147466]
[1725744939962,0.235421,54046.0,54045.0,0.06147466]
[1725744940348,0.235421,54046.0,54043.0,0.0526]
[1725744940349,0.092524,54043.0,54042.0,0.092524]
[1725744940552,0.16893973,54043.0,54042.0,0.092524]
[1725744941555,0.16893973,54043.0,54042.0,0.09976243]
[1725744942255,0.29740697,54043.0,54042.0,0.09976243]
[1725744944367,0.29740697,54043.0,54042.0,0.00723843]
[1725744944662,0.23418145,54043.0,54040.0,0.202528]
[1725744944874,0.12844821,54041.0,54040.0,0.202528]
[1725744945362,0.20302651,54041.0,54040.0,0.202528]
[1725744945663,0.0745783,54041.0,54040.0,0.202528]
[1725744945858,0.092525,54042.0,54040.0,0.202528]
[1725744946058,0.1842768,54042.0,54040.0,0.202528]
[1725744947666,0.1842768,54042.0,54040.0,0.20968994]
[1725744949670,0.092525,54042.0,54040.0,0.20968994]
[1725744951368,0.092525,54042.0,54040.0,0.11716194]
[1725744951672,0.1842768,54042.0,54040.0,0.11716194]
[1725744952870,0.1842768,54042.0,54040.0,0.20968994]
[1725744954065,0.0299949,54041.0,54040.0,0.20968994]
[1725744960468,0.02999324,54041.0,54040.0,0.20968994]
[1725744960667,0.02999324,54041.0,54040.0,1.36480994]
[1725744960971,0.02998992,54043.0,54042.0,0.092525]
[1725744961281,0.12844821,54048.0,54047.0,0.092516]
[1725744961461,0.12844821,54049.0,54048.0,0.092514]
[1725744961778,0.12844821,54049.0,54048.0,0.319914]
[1725744962271,0.12844821,54051.0,54048.0,0.2274]
[1725744962476,0.07443447,54050.0,54048.0,0.2274]
[1725744962673,0.12844821,54053.0,54049.0,0.11]
[1725744962977,0.17338001,54063.0,54050.0,0.092511]
[1725744962978,0.12844821,54051.0,54050.0,0.092511]
[1725744963176,0.0744388,54051.0,54050.0,0.092511]
[1725744963564,0.04444971,54051.0,54050.0,0.202511]
[1725744963762,0.12844821,54059.0,54052.0,0.092508]
[1725744963973,0.06524104,54058.0,54057.0,0.092499]
[1725744964179,0.03525727,54058.0,54057.0,0.2119766]
[1725744964362,0.02998244,54058.0,54057.0,1.3669366]
[1725744964672,0.02998238,54063.0,54062.0,0.092491]
[1725744964879,0.12837953,54064.0,54063.0,0.30079161]
[1725744965267,0.12837953,54065.0,54064.0,0.092487]
[1725744965469,0.14686905,54070.0,54065.0,0.092485]
[1725744965470,0.12837953,54066.0,54065.0,0.092485]
[1725744965778,0.12837953,54067.0,54066.0,0.092484]
[1725744965970,0.12837953,54067.0,54066.0,0.202484]
[1725744966273,0.0299817,54067.0,54066.0,0.202484]
[1725744966472,0.12837953,54068.0,54067.0,0.092482]
[1725744967062,0.15836123,54068.0,54067.0,0.092482]
[1725744967265,0.12837953,54069.0,54068.0,0.09248]
[1725744967472,0.12837953,54069.0,54068.0,0.20248]
[1725744967874,0.02998165,54069.0,54068.0,0.20248]
[1725744968172,0.02998036,54069.0,54068.0,0.11]
[1725744968369,0.12837953,54074.0,54072.0,0.092473]
[1725744968569,0.202464,54078.0,54072.0,0.092473]
[1725744968570,0.02997966,54073.0,54072.0,0.202473]
[1725744968771,0.02997966,54074.0,54072.0,0.202473]
[1725744969076,0.15835919,54074.0,54073.0,0.092472]
[1725744969379,0.02997967,54074.0,54073.0,0.092472]
[1725744969672,0.02997967,54075.0,54074.0,0.09247]
[1725744970072,0.02997967,54076.0,54074.0,0.09247]
[1725744970263,0.02997967,54075.0,54074.0,0.09247]
[1725744970763,0.02997967,54077.0,54074.0,0.09247]
[1725744970963,0.02997967,54076.0,54074.0,0.09247]
[1725744971273,0.16444597,54080.0,54074.0,0.09247]
[1725744971274,0.02997967,54075.0,54074.0,0.09247]
[1725744971477,0.02997967,54079.0,54074.0,0.09347]
[1725744971868,0.1583592,54079.0,54074.0,0.09347]
[1725744972075,0.02997967,54078.0,54074.0,0.001]
[1725744972266,0.02997967,54078.0,54077.0,0.092465]
[1725744972471,0.02997967,54079.0,54077.0,0.092465]
[1725744973972,0.04429986,54078.0,54077.0,0.092465]
[1725744974385,0.04429986,54078.0,54077.0,0.093465]
[1725744974572,0.04424017,54078.0,54077.0,0.093465]
[1725744975179,0.07421984,54080.0,54077.0,0.093465]
[1725744975368,0.07421984,54080.0,54077.0,0.001]
[1725744975573,0.092453,54084.0,54079.0,0.202461]
[1725744975774,0.07429839,54083.0,54079.0,0.202461]
[1725744975973,0.14686905,54080.0,54079.0,0.11360768]
[1725744976174,0.17684664,54080.0,54079.0,0.11360768]
[1725744976482,0.28596815,54080.0,54079.0,0.11360768]
[1725744976672,0.1390991,54080.0,54079.0,0.11360768]
[1725744978189,0.07429839,54080.0,54079.0,0.11460768]
[1725744979083,0.07429839,54080.0,54079.0,0.12314208]
[1725744979286,0.07429839,54080.0,54079.0,0.03068108]
[1725744979287,0.07351482,54080.0,54079.0,0.03068108]
[1725744979584,0.04369893,54081.0,54080.0,0.09246]
[1725744979887,0.12781807,54083.0,54079.0,0.03068108]
[1725744980080,0.04370077,54082.0,54079.0,0.0095344]
[1725744980276,0.12781807,54083.0,54081.0,0.11]
[1725744980474,0.04229995,54082.0,54081.0,0.11]
[1725744980670,0.17011802,54082.0,54081.0,0.11]
[1725744981382,0.12781807,54082.0,54081.0,0.11]
[1725744981685,0.07227171,54082.0,54081.0,0.203457]
[1725744983082,0.02997176,54082.0,54081.0,0.203457]
[1725744983382,0.02997161,54088.0,54081.0,0.101]
[1725744983578,0.07238836,54087.0,54086.0,0.092449]
[1725744983779,0.04245335,54090.0,54087.0,0.092446]
[1725744984079,0.02997147,54089.0,54088.0,0.092446]
[1725744984280,0.02997147,54091.0,54088.0,0.092446]
[1725744984473,0.02997147,54090.0,54088.0,0.092446]
[1725744984677,0.20196552,54092.0,54089.0,0.1]
[1725744984987,0.02997134,54091.0,54089.0,0.1]
[1725744985287,0.02997134,54090.0,54089.0,0.1]
[1725744985483,0.10952552,54092.0,54091.0,0.092441]
[1725744986391,0.02997018,54092.0,54091.0,0.092441]
[1725744986585,0.10952552,54092.0,54091.0,0.092441]
[1725744987381,0.10952552,54092.0,54091.0,0.093441]
[1725744987382,0.1394957,54092.0,54091.0,0.093441]
[1725744987586,0.02997018,54092.0,54091.0,0.093441]
[1725744987786,0.10960934,54092.0,54091.0,0.1021813]
[1725744987985,0.02997018,54092.0,54091.0,0.1021813]
[1725744988187,0.02997018,54093.0,54092.0,0.092439]
[1725744988491,0.1395773,54094.0,54093.0,0.192438]
[1725744989187,0.13957729,54094.0,54093.0,0.192438]
[1725744989386,0.02996795,54094.0,54093.0,0.192438]
[1725744989587,0.10960934,54096.0,54095.0,0.092434]
[1725744989789,0.02996755,54096.0,54095.0,0.092434]
[1725744990294,0.02996755,54099.0,54095.0,0.092434]
[1725744990487,0.092426,54100.0,54098.0,0.1]
[1725744990683,0.07383237,54099.0,54098.0,0.1]
[1725744991080,0.07383237,54099.0,54093.0,0.001]
[1725744991283,0.18288812,54097.0,54096.0,0.092432]
[1725744991589,0.15662762,54097.0,54096.0,0.192432]
[1725744991788,0.2209676,54097.0,54096.0,0.192432]
[1725744991992,0.07383237,54097.0,54096.0,0.192432]
[1725744992689,0.2209676,54097.0,54096.0,0.192432]
[1725744992890,0.25575477,54097.0,54096.0,0.192432]
[1725744993484,0.40289,54097.0,54096.0,0.192432]
[1725744993687,0.40289,54097.0,54096.0,0.193432]
[1725744994291,0.2199676,54097.0,54096.0,0.193432]
[1725744994795,0.2199676,54097.0,54096.0,0.101]
[1725744995995,0.2199676,54097.0,54096.0,0.193432]
[1725744996995,0.2199676,54097.0,54096.0,0.20197609]
[1725744999190,0.07283237,54097.0,54096.0,0.20197609]
[1725745004294,0.092422,54102.0,54098.0,0.092429]
[1725745004295,0.23886448,54102.0,54098.0,0.092429]
[1725745004497,0.12730066,54101.0,54098.0,0.092429]
[1725745004695,0.12730066,54100.0,54098.0,0.092429]
[1725745004896,0.12730066,54099.0,54098.0,0.092429]
[1725745005088,0.09733502,54099.0,54098.0,0.092429]
[1725745005288,0.12730066,54101.0,54098.0,0.092429]
[1725745005493,0.12730066,54100.0,54098.0,0.092429]
[1725745005694,0.23986448,54102.0,54099.0,0.1]
[1725745005987,0.12736068,54101.0,54099.0,0.1]
[1725745006302,0.4075113,54100.0,54096.0,0.00854409]
[1725745006488,0.2055085,54099.0,54098.0,0.001]
[1725745006799,0.2055085,54099.0,54098.0,0.101]
[1725745007295,0.2045085,54099.0,54098.0,0.1]
[1725745007994,0.2045085,54099.0,54098.0,0.192428]
[1725745008900,0.2065085,54099.0,54098.0,0.193428]
[1725745009803,0.2065085,54099.0,54098.0,0.1286982]
[1725745010891,0.2065085,54099.0,54098.0,0.13765869]
[1725745012299,0.4085113,54099.0,54098.0,0.13765869]
[1725745013196,0.33036348,54099.0,54098.0,0.13765869]
[1725745013505,0.12836068,54099.0,54098.0,0.13765869]
[1725745014395,0.27529889,54099.0,54098.0,0.13765869]
[1725745016397,0.12836068,54099.0,54098.0,0.13765869]
[1725745016600,0.12836068,54099.0,54098.0,0.10238849]
[1725745016806,0.12836068,54099.0,54098.0,0.20238849]
[1725745019003,0.03196564,54099.0,54098.0,0.20238849]
[1725745019510,0.12836068,54099.0,54098.0,0.20238849]
[1725745024303,0.03196564,54099.0,54098.0,0.20238849]
[1725745024604,0.06912001,54099.0,54098.0,0.20238849]
[1725745024805,0.20176034,54099.0,54098.0,0.18214965]
[1725745025206,0.12836068,54099.0,54098.0,0.18214965]
[1725745027618,0.12133565,54099.0,54098.0,0.18214965]
[1725745028210,0.19432777,54099.0,54098.0,0.10996049]
[1725745028912,0.19432777,54099.0,54098.0,0.20238849]
[1725745031723,0.19432777,54099.0,54098.0,0.13914868]
[1725745032709,0.18944973,54099.0,54098.0,0.13914868]
[1725745033613,0.18944973,54099.0,54098.0,0.1479933]
[1725745034117,0.32120481,54099.0,54098.0,0.1479933]
[1725745034317,0.39185145,54099.0,54098.0,0.1479933]
[1725745036220,0.32120481,54099.0,54098.0,0.1479933]
[1725745036416,0.11880309,54099.0,54098.0,0.1479933]
[1725745040825,0.0676627,54099.0,54098.0,0.1479933]
[1725745041128,0.18928796,54099.0,54098.0,0.1479933]
[1725745041422,0.11880309,54099.0,54098.0,0.1479933]
[1725745042714,0.11863153,54099.0,54098.0,0.1479933]
[1725745046725,0.11863153,54099.0,54098.0,0.00884462]
[1725745046929,0.11863153,54099.0,54080.0,0.0553279]
[1725745046930,0.092449,54086.0,54076.0,0.092465]
[1725745047126,0.12241367,54086.0,54085.0,0.1]
[1725745047426,0.27772391,54086.0,54085.0,0.1]
[1725745047628,0.20715739,54086.0,54085.0,0.1]
[1725745048029,0.092453,54084.0,54083.0,0.421]
[1725745048236,0.092453,54084.0,54083.0,0.321]
[1725745048530,0.092453,54084.0,54080.0,0.00873697]
[1725745048531,1.18465464,54084.0,54080.0,0.00873697]
[1725745048724,1.18465464,54084.0,54070.0,0.321]
[1725745048725,0.14691806,54081.0,54076.0,0.1]
[1725745048920,0.11373079,54080.0,54076.0,0.1]
[1725745049234,0.02997464,54079.0,54076.0,0.1]
[1725745049437,0.12827738,54077.0,54076.0,0.1]
[1725745049833,0.74872344,54077.0,54076.0,0.1]
[1725745050049,0.66735908,54077.0,54073.0,0.09247]
[1725745050340,0.66735908,54077.0,54075.0,0.1]
[1725745050341,0.10959908,54076.0,54075.0,0.1]
[1725745050535,0.0467402,54076.0,54075.0,0.1]
[1725745050723,0.07671921,54076.0,54075.0,0.1]
[1725745051132,0.12818868,54076.0,54073.0,0.09247]
[1725745051330,0.02997901,54075.0,54074.0,0.1]
[1725745051535,0.14190708,54075.0,54074.0,0.1]
[1725745052430,0.07559036,54075.0,54074.0,0.1]
[1725745053034,0.04619537,54075.0,54074.0,0.1]
[1725745053435,0.14623868,54075.0,54074.0,0.1]
[1725745053631,0.19243405,54075.0,54074.0,0.1]
[1725745054136,0.26343405,54075.0,54074.0,0.101]
[1725745054532,0.11719537,54075.0,54074.0,0.101]
[1725745054732,0.11719537,54075.0,54074.0,0.19347]
[1725745057534,0.071,54075.0,54074.0,0.19347]
[1725745057940,0.11707522,54075.0,54074.0,0.19347]
[1725745058440,0.071,54075.0,54074.0,0.19347]
[1725745060245,0.008,54075.0,54074.0,0.19347]
[1725745062949,0.09923743,54075.0,54074.0,0.19347]
[1725745063534,0.19170543,54075.0,54074.0,0.001]
[1725745063841,0.10938317,54075.0,54074.0,0.001]
[1725745064142,0.10938317,54075.0,54074.0,0.00090001]
[1725745065750,0.092476,54071.0,54062.0,0.092489]
[1725745065934,0.09125725,54066.0,54062.0,0.092489]
[1725745066134,0.09125725,54064.0,54062.0,0.092489]
[1725745066353,0.092489,54063.0,54061.0,0.00881189]
[1725745066644,0.092489,54063.0,54059.0,0.092495]
[1725745066645,0.11152874,54062.0,54059.0,0.092495]
[1725745066837,0.11152874,54061.0,54059.0,0.092495]
[1725745067034,0.11052874,54060.0,54059.0,0.092495]
[1725745067747,0.08128787,54060.0,54059.0,0.092495]
[1725745068841,0.14623868,54060.0,54059.0,0.092495]
[1725745069041,0.22752655,54060.0,54059.0,0.096495]
[1725745069242,0.08128787,54060.0,54059.0,0.096495]
[1725745069948,0.08928787,54060.0,54059.0,0.093495]
[1725745071453,0.23552655,54060.0,54059.0,0.093495]
[1725745071640,0.08928787,54060.0,54059.0,0.093495]
[1725745073144,1.39048655,54060.0,54059.0,0.001]
[1725745073346,1.255454,54060.0,54059.0,0.001]
[1725745073953,1.34674616,54060.0,54059.0,0.001]
[1725745074338,0.655454,54060.0,54059.0,0.001]
[1725745074543,0.100494,54060.0,54059.0,0.001]
[1725745074943,0.19188658,54060.0,54059.0,0.001]
[1725745075453,0.100494,54060.0,54059.0,0.001]
[1725745076955,0.100494,54060.0,54059.0,0.093496]
[1725745077451,0.2100446,54060.0,54059.0,0.093496]
[1725745078744,0.100494,54060.0,54059.0,0.093496]
[1725745081352,0.18442912,54060.0,54059.0,0.08414641]
[1725745081946,0.21441752,54060.0,54059.0,0.08414641]
[1725745083251,0.3606562,54060.0,54059.0,0.08414641]
[1725745084259,0.21441752,54060.0,54059.0,0.08414641]
[1725745086060,0.21435402,54060.0,54059.0,0.08414641]
[1725745086748,0.092496,54059.0,54046.0,0.321]
[1725745086959,0.1282254,54051.0,54044.0,0.101]
[1725745087154,0.2413289,54051.0,54050.0,0.092511]
[1725745087348,0.1131035,54051.0,54050.0,0.092511]
[1725745088463,0.23238613,54051.0,54050.0,0.092511]
[1725745088853,0.23238613,54051.0,54050.0,0.094511]
[1725745089054,0.1224973,54051.0,54050.0,0.002]
[1725745089360,0.6775373,54051.0,54050.0,0.002]
[1725745089748,0.1224973,54051.0,54050.0,0.002]
[1725745092465,0.1582316,54051.0,54050.0,0.002]
[1725745094353,0.2507406,54051.0,54050.0,0.002]
[1725745094564,0.092519,54046.0,54045.0,0.092519]
[1725745094767,0.1215073,54046.0,54045.0,0.092519]
[1725745095665,0.1275073,54046.0,54045.0,0.093519]
[1725745096460,0.22572264,54046.0,54045.0,0.093519]
[1725745096660,0.29144514,54046.0,54045.0,0.093519]
[1725745099258,0.1632415,54046.0,54045.0,0.093519]
[1725745099464,0.0717225,54046.0,54045.0,0.093519]
[1725745099667,0.0717225,54046.0,54045.0,0.10235181]
[1725745101176,0.0359883,54046.0,54045.0,0.10235181]
[1725745102575,0.0359883,54046.0,54045.0,1.25743181]
[1725745103367,0.006,54046.0,54045.0,1.34995181]
[1725745103566,0.09168475,54049.0,54048.0,0.092514]
[1725745103770,0.16550919,54071.0,54048.0,0.092514]
[1725745103771,0.09168475,54051.0,54048.0,0.2333]
[1725745103965,0.09168475,54051.0,54050.0,0.1]
[1725745104169,0.09168475,54052.0,54051.0,0.092509]
[1725745104464,0.09168475,54052.0,54051.0,0.192509]
[1725745104664,0.09168475,54052.0,54051.0,0.747549]
[1725745104870,0.09168475,54053.0,54052.0,0.092508]
[1725745105077,0.09168475,54053.0,54052.0,0.192508]
[1725745109478,0.09168475,54053.0,54052.0,0.20108707]
[1725745109872,0.09168475,54055.0,54053.0,0.092506]
[1725745110183,0.09168475,54057.0,54056.0,0.092501]
[1725745110378,0.09168475,54057.0,54056.0,0.192501]
[1725745111268,0.09168475,54058.0,54057.0,0.092499]
[1725745111475,0.092484,54066.0,54062.0,0.092489]
[1725745111776,0.06570688,54065.0,54062.0,0.092489]
[1725745111984,0.06570688,54065.0,54064.0,0.092487]
[1725745112184,0.092482,54068.0,54065.0,0.092485]
[1725745112375,0.06570569,54067.0,54065.0,0.092485]
[1725745112575,0.06570569,54066.0,54065.0,0.092485]
[1725745112777,0.03572209,54066.0,54065.0,0.092485]
[1725745113176,0.0299836,54066.0,54065.0,0.092485]
[1725745113380,0.0299836,54067.0,54065.0,0.092485]
[1725745113588,0.0299836,54066.0,54065.0,0.092485]
[1725745113888,0.0299836,54066.0,54065.0,0.093485]
[1725745113889,0.005,54066.0,54065.0,0.093485]
[1725745114083,0.0349836,54066.0,54065.0,0.093485]
[1725745114589,0.0299836,54066.0,54065.0,0.093485]
[1725745116183,0.0349836,54066.0,54065.0,0.093485]
[1725745117685,0.0349836,54066.0,54065.0,0.10204023]
[1725745118693,0.0349836,54066.0,54065.0,0.06812621]
[1725745119190,0.18571735,54066.0,54065.0,0.06812621]
[1725745120582,0.18410625,54066.0,54065.0,0.06812621]
[1725745122495,0.11756458,54066.0,54065.0,0.06812621]
[1725745123183,0.18412168,54066.0,54065.0,0.06812621]
[1725745123482,0.11756458,54066.0,54065.0,0.06812621]
[1725745125489,0.11749329,54066.0,54065.0,0.06812621]
[1725745126592,0.03498365,54066.0,54065.0,0.06812621]
[1725745128584,0.03727633,54066.0,54065.0,0.06812621]
[1725745130292,0.07299837,54066.0,54065.0,0.06812621]
[1725745133197,0.20120808,54066.0,54065.0,0.06812621]
[1725745133596,0.12035479,54066.0,54065.0,0.06812621]
[1725745136297,0.21283879,54066.0,54065.0,0.06812621]
[1725745137099,0.35936417,54066.0,54065.0,0.06812621]
[1725745137599,0.21283879,54066.0,54065.0,0.06812621]
[1725745137996,0.35936417,54066.0,54065.0,0.06812621]
[1725745138305,0.21283879,54066.0,54065.0,0.06812621]
[1725745140607,0.2789471,54066.0,54065.0,0.06812621]
[1725745140901,0.40873414,54066.0,54065.0,0.06812621]
[1725745141113,0.2789471,54066.0,54065.0,0.06131359]
[1725745141303,0.33084385,54066.0,54065.0,0.06131359]
[1725745141498,0.21237188,54066.0,54065.0,0.06131359]
[1725745141801,0.27896795,54066.0,54065.0,0.06131359]
[1725745142403,0.36758967,54066.0,54065.0,0.06131359]
[1725745142603,0.48107514,54066.0,54065.0,0.06131359]
[1725745144197,0.27896795,54066.0,54065.0,0.06131359]
[1725745144703,0.27896795,54066.0,54065.0,0.00955523]
[1725745145814,0.27896795,54066.0,54065.0,0.10204023]
[1725745148701,0.21237188,54066.0,54065.0,0.10204023]
[1725745150199,0.26685073,54066.0,54065.0,0.10204023]
[1725745150397,0.07299848,54066.0,54065.0,0.11122746]
[1725745152006,0.07299848,54066.0,54065.0,0.21122746]
[1725745154004,0.07299595,54066.0,54065.0,0.21122746]
[1725745155804,0.20159027,54066.0,54065.0,0.21122746]
[1725745156813,0.18576782,54066.0,54065.0,0.17574472]
[1725745158200,0.18576782,54066.0,54065.0,0.1846724]
[1725745158413,0.27518063,54066.0,54065.0,0.1846724]
[1725745158613,0.18576782,54066.0,54065.0,0.1846724]
[1725745159212,0.3879525,54066.0,54065.0,0.1846724]
[1725745161516,0.45900737,54066.0,54065.0,0.1846724]
[1725745161816,0.36959456,54066.0,54065.0,0.1846724]
[1725745162715,0.36959456,54066.0,54065.0,0.0846724]
[1725745162918,0.36959456,54066.0,54065.0,0.1846724]
[1725745163709,0.20173799,54066.0,54065.0,0.1846724]
[1725745168408,0.07299595,54066.0,54065.0,0.1846724]
[1725745169014,0.07299474,54066.0,54065.0,0.0846724]
[1725745169420,0.07299474,54066.0,54065.0,0.1846724]
[1725745170416,0.11929625,54066.0,54065.0,0.1846724]
[1725745171710,0.18552649,54066.0,54065.0,0.11811491]
[1725745171911,0.27517942,54066.0,54065.0,0.21059991]
[1725745172114,0.38771117,54066.0,54065.0,0.21059991]
[1725745172316,0.18552649,54066.0,54065.0,0.21059991]
[1725745175731,0.38771117,54066.0,54065.0,0.21059991]
[1725745177631,0.18552649,54066.0,54065.0,0.21059991]
[1725745178737,0.11929625,54066.0,54065.0,0.21059991]
[1725745178919,0.118279,54066.0,54065.0,0.21059991]
[1725745180120,0.13606866,54066.0,54065.0,0.21059991]
[1725745180317,0.20177102,54066.0,54065.0,0.21059991]
[1725745188735,0.07299504,54066.0,54065.0,0.21059991]
[1725745193835,0.07299504,54066.0,54065.0,0.17517992]
[1725745194132,0.18949702,54066.0,54065.0,0.17517992]
[1725745194339,0.18949702,54066.0,54065.0,0.18425267]
[1725745195133,0.18949702,54066.0,54065.0,0.19302979]
[1725745196533,0.18949702,54066.0,54065.0,0.74790979]
[1725745196734,0.18949702,54066.0,54065.0,0.19302979]
[1725745198538,0.37351181,54066.0,54065.0,0.19302979]
[1725745200248,0.22128955,54066.0,54065.0,0.79302979]
[1725745200449,0.12139971,54066.0,54065.0,1.44039479]
[1725745200640,0.18215189,54066.0,54065.0,1.43132204]
[1725745200946,0.29480257,54084.0,54065.0,1.43132204]
[1725745200947,0.12883425,54068.0,54067.0,0.092482]
[1725745201243,0.14723334,54073.0,54072.0,0.092473]
[1725745201450,0.16563157,54075.0,54074.0,0.09247]
[1725745201749,0.18547512,54084.0,54076.0,0.092466]
[1725745201750,0.12874547,54079.0,54076.0,0.092466]
[1725745202048,0.14713768,54082.0,54078.0,0.1]
[1725745202251,0.04689632,54081.0,54078.0,0.1]
[1725745202454,0.12869544,54079.0,54078.0,0.1]
[1725745203041,0.13469544,54079.0,54078.0,0.1]
[1725745203360,0.006,54079.0,54078.0,0.1]
[1725745204649,0.12869544,54081.0,54078.0,0.101]
[1725745204851,0.12869544,54081.0,54078.0,0.10993519]
[1725745206341,0.092453,54084.0,54078.0,0.10993519]
[1725745206342,0.12869544,54082.0,54078.0,0.10993519]
[1725745206539,0.12869544,54081.0,54078.0,0.10993519]
[1725745207064,0.12869544,54082.0,54078.0,0.10993519]
[1725745207241,0.12869544,54081.0,54078.0,0.10993519]
[1725745208542,0.001,54081.0,54078.0,0.10993519]
[1725745208749,0.0466489,54080.0,54078.0,0.20239819]
[1725745208943,0.12856342,54079.0,54078.0,0.20239819]
[1725745210347,0.12856342,54080.0,54078.0,0.20239819]
[1725745210947,0.03571116,54079.0,54078.0,0.20239819]
[1725745212250,0.03671116,54079.0,54078.0,0.20239819]
[1725745214052,0.03671116,54079.0,54078.0,0.10239819]
[1725745214252,0.03671116,54079.0,54078.0,0.20239819]
[1725745214457,0.03671116,54079.0,54078.0,0.10239819]
[1725745215853,0.06668549,54079.0,54078.0,0.10239819]
[1725745216759,0.03097433,54079.0,54078.0,0.10239819]
[1725745217964,0.11114529,54079.0,54078.0,0.10239819]
[1725745218165,0.14111962,54079.0,54078.0,0.10239819]
[1725745218359,0.03097433,54079.0,54078.0,0.10239819]
[1725745218970,0.03097433,54079.0,54078.0,0.20239819]
[1725745225464,0.06668619,54079.0,54078.0,0.20239819]
[1725745229372,0.12956342,54079.0,54078.0,0.20239819]
[1725745229573,0.19524961,54079.0,54078.0,0.20239819]
[1725745230370,0.06668619,54079.0,54078.0,0.20239819]
[1725745231072,0.06668666,54079.0,54078.0,0.20239819]
[1725745231863,0.03097491,54079.0,54078.0,0.20239819]
[1725745232174,0.07818876,54079.0,54078.0,0.20239819]
[1725745232368,0.1140404,54079.0,54078.0,0.20239819]
[1725745234576,0.0666849,54079.0,54078.0,0.20239819]
[1725745235469,0.1598125,54079.0,54078.0,0.20239819]
[1725745236174,0.19552329,54079.0,54078.0,0.20239819]
[1725745236972,0.11393907,54079.0,54078.0,0.20239819]
[1725745237377,0.1140064,54079.0,54078.0,0.20239819]
[1725745238769,0.06668356,54079.0,54078.0,0.20239819]
[1725745242486,0.0309735,54079.0,54078.0,0.20239819]
[1725745245887,0.04883296,54079.0,54078.0,0.20239819]
[1725745246187,0.001,54079.0,54078.0,0.20239819]
[1725745246489,0.11451405,54079.0,54078.0,0.20239819]
[1725745247493,0.11447492,54079.0,54078.0,0.20239819]
[1725745249693,0.12973017,54079.0,54078.0,0.20239819]
[1725745249881,0.19540939,54079.0,54078.0,0.20239819]
[1725745250491,0.24298272,54079.0,54078.0,0.20239819]
[1725745250694,0.11425255,54079.0,54078.0,0.20239819]
[1725745253895,0.14133712,54079.0,54078.0,0.20239819]
[1725745254295,0.03097152,54079.0,54078.0,0.20239819]
[1725745257593,0.03097361,54079.0,54078.0,0.20239819]
[1725745257793,0.1403696,54084.0,54080.0,0.09246]
[1725745257995,0.0920141,54083.0,54081.0,0.25694242]
[1725745258294,0.07357725,54083.0,54082.0,0.2403209]
[1725745258600,0.07357725,54083.0,54082.0,0.184912]
[1725745258985,0.07357725,54083.0,54082.0,0.24786642]
[1725745259186,0.0920141,54087.0,54082.0,1.49504242]
[1725745259388,0.0920141,54088.0,54087.0,0.092448]
[1725745259595,0.0920141,54088.0,54087.0,0.192448]
[1725745260905,0.11242128,54088.0,54087.0,0.193448]
[1725745261104,0.14713768,54090.0,54089.0,0.092444]
[1725745261293,0.17710473,54090.0,54089.0,0.092444]
[1725745261487,0.25955627,54090.0,54089.0,0.092444]
[1725745262600,0.11241859,54090.0,54089.0,0.092444]
[1725745262788,0.11241859,54090.0,54089.0,0.093444]
[1725745263104,0.11241859,54090.0,54089.0,0.185888]
[1725745263600,0.15858599,54090.0,54089.0,0.185888]
[1725745264410,0.19428837,54090.0,54089.0,0.185888]
[1725745264701,0.16432132,54090.0,54089.0,0.185888]
[1725745265099,0.19428837,54090.0,54089.0,0.185888]
[1725745265300,0.16432132,54090.0,54089.0,0.185888]
[1725745265500,0.19428837,54090.0,54089.0,0.185888]
[1725745265702,0.16432132,54090.0,54089.0,0.185888]
[1725745265892,0.12861894,54091.0,54090.0,0.092443]
[1725745266089,0.16431851,54091.0,54090.0,0.192443]
[1725745266293,0.16431851,54091.0,54090.0,0.261743]
[1725745266494,0.06566426,54091.0,54090.0,0.261743]
[1725745266793,0.05666425,54091.0,54090.0,0.261743]
[1725745267098,0.14713768,54095.0,54094.0,0.092436]
[1725745267401,0.17710168,54095.0,54094.0,0.18319241]
[1725745267602,0.25998481,54095.0,54094.0,0.18319241]
[1725745268108,0.11284713,54095.0,54094.0,0.18319241]
[1725745268794,0.11284713,54095.0,54094.0,0.18419241]
[1725745268995,0.09178125,54097.0,54096.0,0.092432]
[1725745269303,0.11013751,54100.0,54098.0,0.092428]
[1725745269606,0.11013751,54100.0,54099.0,0.1]
[1725745271109,0.02996371,54100.0,54099.0,0.1]
[1725745271299,0.14010122,54101.0,54099.0,0.1]
[1725745271491,0.02996371,54100.0,54099.0,0.1]